fUST/lending_fUST_20250603
["ID","MTS","AMOUNT","RATE_DAILY","PERIOD"]
[363839976,1748895036244,-451.0,0.0001671,2]
[363839977,1748895036255,-500.0,0.0001671,2]
[363839978,1748895036265,-500.0,0.0001671,2]
[363839979,1748895036275,-430.0,0.0001671,2]
[363839980,1748895036288,-430.0,0.0001671,2]
[363839981,1748895036298,-351.19887758,0.0001671,2]
[363839982,1748895036308,-430.0,0.0001671,2]
[363839983,1748895036317,-430.0,0.0001671,2]
[363839984,1748895036327,-385.23465037,0.0001671,2]
[363839985,1748895036337,-400.0,0.0001671,2]
[363839986,1748895036346,-400.0,0.0001671,2]
[363839987,1748895036356,-400.0,0.0001671,2]
[363839988,1748895036365,-385.56374583,0.0001671,2]
[363839989,1748895036375,-430.0,0.0001671,2]
[363839990,1748895036385,-430.0,0.0001671,2]
[363839991,1748895036398,-430.0,0.0001671,2]
[363839992,1748895036408,-430.0,0.0001671,2]
[363839993,1748895036418,-481.63,0.0001671,2]
[363839994,1748895036431,-430.0,0.0001671,2]
[363839995,1748895036441,-430.0,0.0001671,2]
[363839996,1748895036451,-430.0,0.0001671,2]
[363839997,1748895036461,-430.0,0.0001671,2]
[363839998,1748895036472,-430.0,0.0001671,2]
[363839999,1748895036482,-285.0,0.0001671,2]
[363840000,1748895036491,-440.0,0.0001671,2]
[363840001,1748895036506,-430.0,0.0001671,2]
[363840002,1748895036519,-430.0,0.0001671,2]
[363840003,1748895036533,-440.0,0.00016981,2]
[363840004,1748895036547,-420.0,0.00016981,2]
[363840005,1748895036559,-527.55,0.00016981,2]
[363840006,1748895036571,-440.0,0.00016981,2]
[363840007,1748895036582,-440.0,0.00016981,2]
[363840008,1748895036594,-440.0,0.00016981,2]
[363840009,1748895036607,-440.0,0.00016981,2]
[363840010,1748895036618,-411.72059834,0.00016981,2]
[363840011,1748895036630,-420.0,0.00016981,2]
[363840012,1748895036642,-440.0,0.00016981,2]
[363840013,1748895036654,-500.0,0.00016981,2]
[363840014,1748895036667,-420.0,0.00016982,2]
[363840015,1748895036681,-440.0,0.00016982,2]
[363840016,1748895036692,-420.0,0.00016982,2]
[363840017,1748895036705,-420.0,0.00016982,2]
[363840018,1748895036717,-420.0,0.00016982,2]
[363840020,1748895036730,-239.93,0.00016982,2]
[363840021,1748895036742,-420.0,0.00016982,2]
[363840022,1748895036753,-440.0,0.00016982,2]
[363840023,1748895036764,-420.0,0.00016982,2]
[363840024,1748895036776,-440.0,0.00016982,2]
[363840025,1748895036787,-420.0,0.00016982,2]
[363840026,1748895036799,-440.0,0.00016982,2]
[363840027,1748895036811,-420.0,0.00016982,2]
[363840028,1748895036824,-467.13,0.00016982,2]
[363840029,1748895036836,-440.0,0.00016982,2]
[363840030,1748895036848,-440.0,0.00016982,2]
[363840031,1748895036861,-420.0,0.00016982,2]
[363840032,1748895036872,-440.0,0.00016982,2]
[363840033,1748895036882,-420.0,0.00016982,2]
[363840035,1748895036893,-518.28,0.00016982,2]
[363840036,1748895036907,-440.0,0.00016982,2]
[363840037,1748895036918,-249.98,0.00016982,2]
[363840038,1748895036933,-440.0,0.00016982,2]
[363840039,1748895036945,-440.0,0.00016982,2]
[363840040,1748895036957,-440.0,0.00016982,2]
[363840041,1748895036970,-420.0,0.00016982,2]
[363840042,1748895036983,-440.0,0.00016982,2]
[363840043,1748895036995,-420.0,0.00016982,2]
[363840044,1748895037008,-420.0,0.00016982,2]
[363840045,1748895037020,-560.0,0.00016982,2]
[363840046,1748895037033,-169.30493338,0.00016982,2]
[363840047,1748895037046,-560.0,0.00016982,2]
[363840048,1748895037059,-440.0,0.00016982,2]
[363840049,1748895037070,-440.0,0.00016982,2]
[363840050,1748895037081,-440.0,0.00016982,2]
[363840051,1748895037091,-447.44,0.00016982,2]
[363840052,1748895037103,-420.0,0.00016982,2]
[363840053,1748895037114,-420.0,0.00016982,2]
[363840054,1748895037125,-302.03436861,0.00016982,2]
[363840055,1748895037136,-440.0,0.00016982,2]
[363840056,1748895037147,-420.0,0.00016982,2]
[363840057,1748895037161,-420.0,0.00016982,2]
[363840058,1748895037173,-240.82,0.00016983,2]
[363840059,1748895037186,-173.68,0.00016983,2]
[363840060,1748895037196,-440.0,0.00016983,2]
[363840061,1748895037206,-304.39,0.00016983,2]
[363840062,1748895037218,-440.0,0.00016983,2]
[363840063,1748895037229,-440.0,0.00016983,2]
[363840064,1748895037240,-440.0,0.00016983,2]
[363840065,1748895037252,-569.64,0.00016983,2]
[363840066,1748895037264,-485.19,0.00016983,2]
[363840067,1748895037276,-440.0,0.00016983,2]
[363840068,1748895037287,-420.0,0.00016983,2]
[363840069,1748895037297,-1008.73,0.00016983,2]
[363840070,1748895037308,-500.0,0.00016984,2]
[363840071,1748895037319,-420.0,0.00016984,2]
[363840072,1748895037331,-440.0,0.00017255,2]
[363840073,1748895037342,-440.0,0.00017255,2]
[363840074,1748895037353,-440.0,0.00017255,2]
[363840075,1748895037364,-410.0,0.00017255,2]
[363840076,1748895037377,-440.0,0.00017255,2]
[363840077,1748895037390,-440.0,0.00017255,2]
[363840078,1748895037403,-440.0,0.00017256,2]
[363840079,1748895037417,-440.0,0.00017256,2]
[363840080,1748895037435,-440.0,0.00017256,2]
[363840081,1748895037450,-440.0,0.00017256,2]
[363840082,1748895037464,-467.13,0.00017256,2]
[363840083,1748895037478,-585.73,0.00017256,2]
[363840084,1748895037490,-440.0,0.00017256,2]
[363840086,1748895037504,-162.83,0.00017256,2]
[363840088,1748895037519,-410.0,0.00017256,2]
[363840089,1748895037532,-410.0,0.00017256,2]
[363840091,1748895037545,-440.0,0.00017256,2]
[363840093,1748895037557,-440.0,0.00017256,2]
[363840094,1748895037571,-440.0,0.00017256,2]
[363840095,1748895037583,-440.0,0.00017256,2]
[363840096,1748895037595,-440.0,0.00017256,2]
[363840098,1748895037608,-440.0,0.00017256,2]
[363840100,1748895037621,-447.44,0.00017256,2]
[363840102,1748895037632,-440.0,0.00017256,2]
[363840103,1748895037644,-493.24934284,0.00017257,2]
[363840105,1748895037655,-500.0,0.00017257,2]
[363840107,1748895037668,-430.0,0.00017257,2]
[363840109,1748895037687,-430.0,0.00017257,2]
[363840111,1748895037700,-414.44,0.00017257,2]
[363840112,1748895037712,-440.0,0.00017257,2]
[363840113,1748895037724,-440.0,0.00017257,2]
[363840114,1748895037735,-440.0,0.00017257,2]
[363840116,1748895037747,-440.0,0.00017257,2]
[363840117,1748895037759,-569.64,0.00017257,2]
[363840118,1748895037772,-440.0,0.00017257,2]
[363840119,1748895037784,-1008.73,0.00017257,2]
[363840120,1748895037796,-440.0,0.00017529,2]
[363840121,1748895037808,-440.0,0.00017529,2]
[363840122,1748895037821,-440.0,0.00017529,2]
[363840124,1748895037833,-440.0,0.00017529,2]
[363840125,1748895037854,-440.0,0.00017529,2]
[363840128,1748895037866,-440.0,0.0001753,2]
[363840130,1748895037877,-440.0,0.0001753,2]
[363840132,1748895037889,-440.0,0.0001753,2]
[363840134,1748895037900,-440.0,0.0001753,2]
[363840135,1748895037912,-467.13,0.0001753,2]
[363840137,1748895037928,-440.0,0.0001753,2]
[363840139,1748895037939,-559.57,0.0001753,2]
[363840141,1748895037950,-440.0,0.0001753,2]
[363840144,1748895037961,-440.0,0.0001753,2]
[363840146,1748895037973,-440.0,0.0001753,2]
[363840148,1748895037983,-440.0,0.0001753,2]
[363840150,1748895037994,-440.0,0.0001753,2]
[363840152,1748895038006,-447.44,0.0001753,2]
[363840154,1748895038018,-440.0,0.0001753,2]
[363840157,1748895038029,-500.0,0.00017531,2]
[363840159,1748895038040,-440.0,0.00017531,2]
[363840161,1748895038049,-440.0,0.00017531,2]
[363840165,1748895038061,-440.0,0.00017531,2]
[363840168,1748895038071,-440.0,0.00017531,2]
[363840169,1748895038079,-569.64,0.00017531,2]
[363840172,1748895038089,-440.0,0.00017531,2]
[363840174,1748895038099,-1008.73,0.00017531,2]
[363840176,1748895038108,-201.33588369,0.00017574,2]
[363840178,1748895038119,-161.59262981,0.00017581,2]
[363840180,1748895038128,-500.0,0.00017584,2]
[363840182,1748895038136,-10965.6298114,0.00017711,2]
[363840184,1748895038148,-440.0,0.00017803,2]
[363840187,1748895038159,-440.0,0.00017803,2]
[363840189,1748895038170,-440.0,0.00017803,2]
[363840191,1748895038186,-440.0,0.00017803,2]
[363840193,1748895038197,-440.0,0.00017803,2]
[363840195,1748895038209,-390.0,0.00017804,2]
[363840198,1748895038220,-440.0,0.00017804,2]
[363840212,1748895038231,-440.0,0.00017804,2]
[363840218,1748895038407,-440.0,0.00017804,2]
[363840221,1748895038419,-467.13,0.00017804,2]
[363840223,1748895038432,-440.0,0.00017804,2]
[363840224,1748895038442,-440.0,0.00017804,2]
[363840227,1748895038452,-440.0,0.00017804,2]
[363840229,1748895038463,-440.0,0.00017804,2]
[363840231,1748895038474,-440.0,0.00017804,2]
[363840232,1748895038484,-440.0,0.00017804,2]
[363840235,1748895038494,-447.44,0.00017804,2]
[363840237,1748895038504,-440.0,0.00017804,2]
[363840239,1748895038515,-441.93286393,0.00017805,2]
[363840241,1748895038525,-522.78874754,0.00017805,2]
[363840243,1748895038535,-440.0,0.00017805,2]
[363840245,1748895038546,-440.0,0.00017805,2]
[363840247,1748895038556,-440.0,0.00017805,2]
[363840249,1748895038566,-569.64,0.00017805,2]
[363840251,1748895038577,-440.0,0.00017805,2]
[363840253,1748895038586,-1008.73,0.00017805,2]
[363840255,1748895038596,-638.62684712,0.00017852,2]
[363840258,1748895038615,-329.15676859,0.000179,2]
[363840260,1748895038628,-440.0,0.00018077,2]
[363840262,1748895038638,-440.0,0.00018077,2]
[363840264,1748895038649,-440.0,0.00018077,2]
[363840266,1748895038659,-440.0,0.00018077,2]
[363840268,1748895038669,-440.0,0.00018077,2]
[363840270,1748895038684,-440.0,0.00018078,2]
[363840272,1748895038695,-440.0,0.00018078,2]
[363840274,1748895038705,-440.0,0.00018078,2]
[363840276,1748895038716,-467.13,0.00018078,2]
[363840278,1748895038727,-440.0,0.00018078,2]
[363840280,1748895038737,-440.0,0.00018078,2]
[363840282,1748895038748,-440.0,0.00018078,2]
[363840284,1748895038758,-440.0,0.00018078,2]
[363840287,1748895038768,-440.0,0.00018078,2]
[363840289,1748895038778,-440.0,0.00018078,2]
[363840291,1748895038788,-447.44,0.00018078,2]
[363840293,1748895038798,-440.0,0.00018078,2]
[363840295,1748895038808,-440.0,0.00018079,2]
[363840297,1748895038817,-440.0,0.00018079,2]
[363840299,1748895038827,-439.59,0.00018079,2]
[363840301,1748895038837,-569.64,0.00018079,2]
[363840302,1748895038848,-440.0,0.00018079,2]
[363840303,1748895038858,-1008.73,0.00018079,2]
[363840304,1748895038868,-329.15676855,0.00018107,2]
[363840305,1748895038879,-235.8657503,0.00018252,2]
[363840306,1748895038888,-420.0,0.00018252,2]
[363840307,1748895038898,-329.15676855,0.00018314,2]
[363840308,1748895038908,-440.0,0.00018351,2]
[363840309,1748895038917,-440.0,0.00018351,2]
[363840310,1748895038931,-440.0,0.00018351,2]
[363840311,1748895038942,-440.0,0.00018351,2]
[363840313,1748895038951,-440.0,0.00018351,2]
[363840314,1748895038961,-440.0,0.00018352,2]
[363840315,1748895038971,-270.84,0.00018352,2]
[363840317,1748895038981,-440.0,0.00018352,2]
[363840319,1748895038990,-467.13,0.00018352,2]
[363840321,1748895039001,-440.0,0.00018352,2]
[363840323,1748895039010,-440.0,0.00018352,2]
[363840325,1748895039020,-440.0,0.00018352,2]
[363840327,1748895039029,-440.0,0.00018352,2]
[363840329,1748895039040,-440.0,0.00018352,2]
[363840331,1748895039052,-440.0,0.00018352,2]
[363840333,1748895039062,-447.44,0.00018352,2]
[363840335,1748895039072,-440.0,0.00018352,2]
[363840337,1748895039082,-440.0,0.00018353,2]
[363840339,1748895039092,-440.0,0.00018353,2]
[363840341,1748895039102,-569.64,0.00018353,2]
[363840343,1748895039112,-440.0,0.00018353,2]
[363840345,1748895039121,-1008.73,0.00018353,2]
[363840348,1748895039131,-842.5625,0.00018494,2]
[363840350,1748895039141,-160.0,0.00018494,2]
[363840352,1748895039151,-229.39799938,0.00018494,2]
[363840354,1748895039161,-160.0,0.00018494,2]
[363840356,1748895039172,-423.56953423,0.00018494,2]
[363840358,1748895039186,-212.83419937,0.00018495,2]
[363840360,1748895039196,-329.15676855,0.00018521,2]
[363840362,1748895039207,-440.0,0.00018625,2]
[363840364,1748895039217,-440.0,0.00018625,2]
[363840366,1748895039228,-440.0,0.00018625,2]
[363840368,1748895039239,-440.0,0.00018625,2]
[363840370,1748895039249,-440.0,0.00018625,2]
[363840372,1748895039258,-440.0,0.00018626,2]
[363840374,1748895039268,-440.0,0.00018626,2]
[363840376,1748895039278,-467.13,0.00018626,2]
[363840378,1748895039288,-440.0,0.00018626,2]
[363840380,1748895039298,-440.0,0.00018626,2]
[363840382,1748895039308,-440.0,0.00018626,2]
[363840384,1748895039318,-440.0,0.00018626,2]
[363840386,1748895039328,-440.0,0.00018626,2]
[363840388,1748895039338,-589.91,0.00018626,2]
[363840390,1748895039348,-447.44,0.00018626,2]
[363840392,1748895039357,-440.0,0.00018626,2]
[363840394,1748895039367,-440.0,0.00018627,2]
[363840396,1748895039377,-440.0,0.00018627,2]
[363840398,1748895039388,-569.64,0.00018627,2]
[363840400,1748895039400,-440.0,0.00018627,2]
[363840402,1748895039410,-1008.73,0.00018627,2]
[363840404,1748895039420,-329.15676855,0.00018728,2]
[363840406,1748895039432,-440.0,0.00018899,2]
[363840408,1748895039443,-440.0,0.00018899,2]
[363840410,1748895039453,-440.0,0.00018899,2]
[363840413,1748895039463,-350.0,0.00018899,2]
[363840415,1748895039473,-440.0,0.00018899,2]
[363840417,1748895039483,-440.0,0.000189,2]
[363840419,1748895039492,-440.0,0.000189,2]
[363840421,1748895039502,-467.13,0.000189,2]
[363840423,1748895039511,-440.0,0.000189,2]
[363840425,1748895039521,-440.0,0.000189,2]
[363840427,1748895039531,-440.0,0.000189,2]
[363840429,1748895039541,-440.0,0.000189,2]
[363840431,1748895039551,-440.0,0.000189,2]
[363840433,1748895039561,-447.44,0.000189,2]
[363840435,1748895039570,-440.0,0.000189,2]
[363840437,1748895039580,-440.0,0.00018901,2]
[363840439,1748895039590,-440.0,0.00018901,2]
[363840441,1748895039599,-569.64,0.00018901,2]
[363840443,1748895039610,-440.0,0.00018901,2]
[363840445,1748895039620,-1008.73,0.00018901,2]
[363840447,1748895039630,-329.15676855,0.00018934,2]
[363840449,1748895039639,-854.59,0.00018987,2]
[363840451,1748895039650,-329.15676855,0.00019141,2]
[363840453,1748895039660,-440.0,0.00019173,2]
[363840455,1748895039669,-440.0,0.00019173,2]
[363840457,1748895039681,-440.0,0.00019173,2]
[363840459,1748895039690,-440.0,0.00019173,2]
[363840461,1748895039699,-440.0,0.00019174,2]
[363840463,1748895039708,-440.0,0.00019174,2]
[363840465,1748895039718,-467.13,0.00019174,2]
[363840467,1748895039727,-340.0,0.00019174,2]
[363840469,1748895039736,-340.0,0.00019174,2]
[363840471,1748895039747,-340.0,0.00019174,2]
[363840473,1748895039757,-440.0,0.00019174,2]
[363840475,1748895039766,-340.0,0.00019174,2]
[363840477,1748895039776,-447.44,0.00019174,2]
[363840479,1748895039786,-440.0,0.00019174,2]
[363840481,1748895039795,-440.0,0.00019175,2]
[363840483,1748895039805,-491.4,0.00019175,2]
[363840485,1748895039814,-569.64,0.00019175,2]
[363840487,1748895039823,-440.0,0.00019175,2]
[363840489,1748895039833,-1008.73,0.00019175,2]
[363840491,1748895039842,-181.654484,0.00019178,2]
[363840493,1748895039852,-329.15676855,0.00019348,2]
[363840495,1748895039862,-500.0,0.0001935,2]
[363840497,1748895039872,-440.0,0.00019447,2]
[363840499,1748895039882,-440.0,0.00019447,2]
[363840501,1748895039892,-440.0,0.00019447,2]
[363840503,1748895039901,-440.0,0.00019447,2]
[363840506,1748895039911,-440.0,0.00019448,2]
[363840508,1748895039921,-440.0,0.00019448,2]
[363840509,1748895039933,-467.13,0.00019448,2]
[363840511,1748895039943,-440.0,0.00019448,2]
[363840513,1748895039953,-447.44,0.00019448,2]
[363840516,1748895039963,-440.0,0.00019448,2]
[363840518,1748895039973,-440.0,0.00019449,2]
[363840520,1748895039983,-569.64,0.00019449,2]
[363840522,1748895039992,-440.0,0.00019449,2]
[363840524,1748895040001,-1008.73,0.00019449,2]
[363840526,1748895040011,-235.86575027,0.00019489,2]
[363840528,1748895040021,-329.15676855,0.00019555,2]
[363840530,1748895040030,-335.778,0.00019608,2]
[363840532,1748895040039,-440.0,0.00019721,2]
[363840534,1748895040049,-440.0,0.00019721,2]
[363840536,1748895040059,-440.0,0.00019721,2]
[363840538,1748895040069,-440.0,0.00019721,2]
[363840540,1748895040079,-440.0,0.00019722,2]
[363840542,1748895040089,-440.0,0.00019722,2]
[363840544,1748895040099,-467.13,0.00019722,2]
[363840546,1748895040108,-440.0,0.00019722,2]
[363840548,1748895040119,-447.44,0.00019722,2]
[363840549,1748895040129,-203.56,0.00019722,2]
[363840552,1748895040147,-440.0,0.00019723,2]
[363840554,1748895040158,-569.64,0.00019723,2]
[363840556,1748895040169,-235.28948664,0.00019723,2]
[363840558,1748895040184,-1008.73,0.00019723,2]
[363840560,1748895040194,-329.15676855,0.00019762,2]
[363840562,1748895040205,-900.0,0.00019766,2]
[363840564,1748895040216,-500.0,0.00019898,2]
[363840566,1748895040226,-303.0,0.00019941,2]
[363840568,1748895040236,-329.15676855,0.00019969,2]
[363840570,1748895040246,-364.4406513,0.00019973,2]
[363840572,1748895040256,-364.4406513,0.00019973,2]
[363840574,1748895040266,-364.4406513,0.00019973,2]
[363840576,1748895040277,-440.0,0.00019995,2]
[363840578,1748895040286,-440.0,0.00019995,2]
[363840580,1748895040296,-345.4,0.00019995,2]
[363840582,1748895040306,-440.0,0.00019995,2]
[363840583,1748895040315,-440.0,0.00019996,2]
[363840585,1748895040325,-440.0,0.00019996,2]
[363840588,1748895040336,-467.13,0.00019996,2]
[363840590,1748895040345,-440.0,0.00019996,2]
[363840592,1748895040355,-447.44,0.00019996,2]
[363840593,1748895040364,-440.0,0.00019997,2]
[363840596,1748895040375,-569.64,0.00019997,2]
[363840598,1748895040386,-1008.73,0.00019997,2]
[363840600,1748895040396,-152.51297585,0.00020151,2]
[363840601,1748895040407,-207.4,0.00020151,2]
[363840603,1748895040416,-500.0,0.00020151,2]
[363840605,1748895040428,-500.0,0.00020151,2]
[363840607,1748895040438,-500.0,0.00020151,2]
[363840609,1748895040448,-500.0,0.00020151,2]
[363840611,1748895040458,-5000.0,0.00020151,2]
[363840613,1748895040468,-500.0,0.00020151,2]
[363840615,1748895040479,-500.0,0.00020151,2]
[363840617,1748895040489,-500.0,0.00020151,2]
[363840619,1748895040499,-500.0,0.00020151,2]
[363840621,1748895040508,-500.0,0.00020151,2]
[363840623,1748895040517,-500.0,0.00020151,2]
[363840625,1748895040526,-500.0,0.00020151,2]
[363840627,1748895040536,-500.0,0.00020151,2]
[363840629,1748895040545,-500.0,0.00020151,2]
[363840631,1748895040554,-500.0,0.00020151,2]
[363840633,1748895040564,-500.0,0.00020151,2]
[363840635,1748895040575,-329.15676855,0.00020176,2]
[363840636,1748895040584,-473.050717,0.00020187,2]
[363840638,1748895040594,-440.0,0.00020269,2]
[363840639,1748895040604,-440.0,0.00020269,2]
[363840640,1748895040612,-440.0,0.00020269,2]
[363840641,1748895040621,-440.0,0.0002027,2]
[363840642,1748895040631,-331.6,0.0002027,2]
[363840643,1748895040639,-467.13,0.0002027,2]
[363840644,1748895040648,-440.0,0.0002027,2]
[363840645,1748895040657,-447.44,0.0002027,2]
[363840646,1748895040666,-440.0,0.00020271,2]
[363840647,1748895040677,-569.64,0.00020271,2]
[363840648,1748895040686,-1008.73,0.00020271,2]
[363840649,1748895040696,-329.15676855,0.00020383,3]
[363840650,1748895040705,-1566.67906171,0.000204,2]
[363840651,1748895040714,-158.5152029,0.00020521,2]
[363840652,1748895040723,-176.5287595,0.00020521,2]
[363840653,1748895040732,-390.5657552,0.00020521,2]
[363840654,1748895040742,-572.502888,0.00020521,2]
[363840655,1748895040751,-176.5287595,0.00020521,2]
[363840656,1748895040761,-158.5152029,0.00020521,2]
[363840658,1748895040770,-572.502888,0.00020521,2]
[363840660,1748895040780,-440.0,0.00020543,2]
[363840661,1748895040791,-467.6,0.00020543,2]
[363840663,1748895040801,-440.0,0.00020543,2]
[363840665,1748895040811,-440.0,0.00020544,2]
[363840667,1748895040820,-467.13,0.00020544,2]
[363840669,1748895040830,-176.28,0.00020544,2]
[363840671,1748895040840,-447.44,0.00020544,2]
[363840673,1748895040849,-440.0,0.00020545,2]
[363840675,1748895040859,-569.64,0.00020545,2]
[363840677,1748895040869,-1008.73,0.00020545,2]
[363840678,1748895040878,-500.0,0.00020547,2]
[363840679,1748895040888,-329.15676855,0.0002059,3]
[363840680,1748895040897,-153.0,0.0002063,2]
[363840681,1748895040907,-153.0,0.0002063,2]
[363840682,1748895040916,-153.0,0.0002063,2]
[363840683,1748895040928,-153.0,0.0002063,2]
[363840684,1748895040937,-153.0,0.0002063,2]
[363840685,1748895040947,-153.0,0.0002063,2]
[363840686,1748895040957,-153.0,0.0002063,2]
[363840687,1748895040966,-153.0,0.0002063,2]
[363840688,1748895040976,-153.0,0.0002063,2]
[363840689,1748895040986,-306.0,0.0002063,2]
[363840690,1748895040996,-153.0,0.0002063,2]
[363840691,1748895041007,-306.0,0.0002063,2]
[363840692,1748895041016,-153.0,0.00020658,2]
[363840693,1748895041026,-153.0,0.00020658,2]
[363840694,1748895041036,-153.0,0.00020658,2]
[363840695,1748895041046,-153.0,0.00020658,2]
[363840696,1748895041055,-5000.0,0.00020699,2]
[363840697,1748895041066,-1709.19,0.00020713,2]
[363840698,1748895041075,-235.86575027,0.00020726,2]
[363840700,1748895041085,-329.15676855,0.00020797,4]
[363840702,1748895041095,-440.0,0.00020817,2]
[363840704,1748895041108,-440.0,0.00020817,2]
[363840706,1748895041118,-440.0,0.00020818,2]
[363840708,1748895041127,-467.13,0.00020818,2]
[363840709,1748895041140,-447.44,0.00020818,2]
[363840711,1748895041149,-75.44408356,0.00020819,2]
[363840713,1748895041303,-500.0,0.00016981,2]
[363840714,1748895041312,-267.68184008,0.00016981,2]
[363840803,1748895042983,-3162.8517141,0.00015777,2]
[363840804,1748895042994,-484.45,0.00016707,2]
[363840805,1748895043004,-404.74802783,0.00016707,2]
[363840806,1748895043014,-407.76320901,0.00016707,2]
[363840807,1748895043023,-310.97566826,0.00016707,2]
[363840808,1748895043033,-430.0,0.00016708,2]
[363840809,1748895043043,-430.0,0.00016708,2]
[363840810,1748895043052,-430.0,0.00016708,2]
[363840811,1748895043062,-232.31815992,0.00016981,2]
[363840812,1748895043071,-500.0,0.00016981,2]
[363840813,1748895043081,-358.92979051,0.00016981,2]
[363840814,1748895043091,-500.0,0.00016981,2]
[363840815,1748895043100,-420.81395968,0.00016981,2]
[363840816,1748895043109,-500.0,0.00016981,2]
[363840817,1748895043118,-500.0,0.00016981,2]
[363840819,1748895043128,-500.0,0.00016981,2]
[363840820,1748895043137,-500.0,0.00016981,2]
[363840823,1748895043147,-500.0,0.00016981,2]
[363840825,1748895043157,-156.12092099,0.00016981,2]
[363840827,1748895043167,-217.53603364,0.00016981,2]
[363840829,1748895043178,-500.0,0.00016981,2]
[363840831,1748895043188,-500.0,0.00016981,2]
[363840833,1748895043199,-500.0,0.00016981,2]
[363840835,1748895043208,-500.0,0.00016981,2]
[363840837,1748895043218,-500.0,0.00016981,2]
[363840839,1748895043227,-500.0,0.00016981,2]
[363840841,1748895043237,-500.0,0.00016981,2]
[363840843,1748895043247,-500.0,0.00016981,2]
[363840845,1748895043257,-500.0,0.00016981,2]
[363840847,1748895043266,-500.0,0.00016981,2]
[363840849,1748895043276,-500.0,0.00016981,2]
[363840851,1748895043285,-500.0,0.00016981,2]
[363840853,1748895043295,-500.0,0.00016981,2]
[363840855,1748895043306,-374.91196954,0.00016981,2]
[363840857,1748895043315,-500.0,0.00016981,2]
[363840859,1748895043325,-500.0,0.00016981,2]
[363840861,1748895043335,-87.67591644,0.00020819,2]
[363840863,1748895043346,-569.64,0.00020819,2]
[363840865,1748895043356,-1008.73,0.00020819,2]
[363840867,1748895043367,-629.75984394,0.00020859,2]
[363840869,1748895043377,-900.0,0.00020862,2]
[363840871,1748895043387,-2380.45724693,0.00020906,2]
[363840873,1748895043402,-728.5022013,0.00020932,2]
[363840875,1748895043412,-728.8813026,0.00020932,2]
[363840877,1748895043422,-364.4406513,0.00020932,2]
[363840879,1748895043436,-364.4406513,0.00020932,2]
[363840882,1748895043446,-364.4406513,0.00020932,2]
[363840884,1748895043456,-364.4406513,0.00020932,2]
[363840886,1748895043466,-364.4406513,0.00020932,2]
[363840887,1748895043476,-855.7224835,0.00020932,2]
[363840890,1748895043487,-150.0,0.00021,2]
[363840892,1748895043498,-329.15676855,0.00021003,4]
[363840894,1748895043508,-500.0,0.0002108,2]
[363840896,1748895043518,-440.0,0.00021091,2]
[363840898,1748895043528,-440.0,0.00021091,2]
[363840900,1748895043538,-440.0,0.00021092,2]
[363840902,1748895043548,-467.13,0.00021092,2]